bitfinex/quotes_BTCUSD_20211001
["timestamp","ask_amount","ask_price","bid_price","bid_amount"]
[1633109568020,0.00129357,47528.0,47522.0,0.2211117]
[1633109568225,0.00129357,47528.0,47527.0,0.388877]
[1633109568422,0.00129357,47528.0,47527.0,0.41704533]
[1633109568623,0.00129357,47528.0,47527.0,0.5065563]
[1633109568820,0.2663444,47538.0,47527.0,0.5065563]
[1633109569022,0.2663444,47538.0,47528.0,0.1095742]
[1633109569023,0.025,47538.0,47528.0,0.1095742]
[1633109569823,0.20876663,47539.0,47528.0,0.1095742]
[1633109570223,0.20876663,47539.0,47531.0,0.210355]
[1633109570423,0.23476663,47539.0,47531.0,0.210355]
[1633109571225,0.23476663,47539.0,47531.0,0.205355]
[1633109571824,0.23476663,47539.0,47531.0,0.520879]
[1633109572424,0.23276663,47539.0,47531.0,0.549879]
[1633109572627,0.07649848,47537.0,47531.0,0.549879]
[1633109573026,0.23276663,47539.0,47536.0,6.011e-05]
[1633109573228,0.23276663,47539.0,47536.0,0.21041411]
[1633109573827,0.20876663,47539.0,47536.0,0.21041411]
[1633109574227,0.30357679,47539.0,47536.0,0.21041411]
[1633109574425,0.32957679,47539.0,47536.0,0.23941411]
[1633109574626,0.217133,47538.0,47536.0,0.23941411]
[1633109575425,0.32957679,47539.0,47536.0,0.23941411]
[1633109575626,0.64512579,47539.0,47536.0,0.23941411]
[1633109576030,0.61912579,47539.0,47536.0,0.21041411]
[1633109576430,0.63912579,47539.0,47536.0,0.23941411]
[1633109577432,0.22876663,47539.0,47536.0,0.23941411]
[1633109577830,0.20376663,47539.0,47536.0,0.21041411]
[1633109578430,0.20376663,47539.0,47536.0,0.23941411]
[1633109578631,0.22976663,47539.0,47537.0,0.00591803]
[1633109579831,0.20376663,47539.0,47537.0,0.00591803]
[1633109580432,0.22976663,47539.0,47537.0,0.03491803]
[1633109581029,0.24254096,47538.0,47537.0,0.03491803]
[1633109581233,0.22976663,47539.0,47537.0,0.03491803]
[1633109581827,0.20376663,47539.0,47537.0,0.00591803]
[1633109582030,0.20376663,47539.0,47536.0,0.21041411]
[1633109582430,0.20376663,47539.0,47536.0,0.23941411]
[1633109582629,0.54431363,47539.0,47536.0,0.23941411]
[1633109583431,0.217133,47538.0,47536.0,0.23941411]
[1633109583634,0.00127915,47537.0,47536.0,0.23941411]
[1633109583835,0.00127915,47537.0,47536.0,0.21041411]
[1633109584232,0.00127915,47537.0,47536.0,0.21633282]
[1633109584632,0.02727915,47537.0,47536.0,0.24633282]
[1633109586035,0.00127915,47537.0,47536.0,0.21633282]
[1633109586635,0.02727915,47537.0,47536.0,0.24633282]
[1633109587638,0.02727915,47537.0,47536.0,0.24954383]
[1633109588038,0.00127915,47537.0,47536.0,0.21954383]
[1633109588636,0.02727915,47537.0,47536.0,0.24954383]
[1633109589636,0.02727915,47537.0,47536.0,0.25713877]
[1633109589837,0.00127915,47537.0,47536.0,0.22713877]
[1633109590640,0.02727915,47537.0,47536.0,0.25713877]
[1633109591442,0.026,47537.0,47536.0,0.25713877]
[1633109591722,0.026,47537.0,47536.0,0.50526511]
[1633109591844,0.026,47537.0,47536.0,0.89755782]
[1633109592046,0.20376663,47539.0,47536.0,0.89755782]
[1633109592244,0.20376663,47539.0,47538.0,0.00126904]
[1633109592445,0.20376663,47539.0,47538.0,0.22328828]
[1633109592647,0.20376663,47539.0,47538.0,0.44648828]
[1633109593042,0.20376663,47539.0,47538.0,0.45561649]
[1633109593444,0.20376663,47539.0,47538.0,0.57005706]
[1633109594643,0.20376663,47539.0,47538.0,0.60805706]
[1633109595044,0.20376663,47539.0,47538.0,0.61565169]
[1633109595644,0.17554846,47539.0,47538.0,0.61565169]
[1633109595843,0.17554846,47539.0,47538.0,0.57765169]
[1633109596645,0.17554846,47539.0,47538.0,0.61865169]
[1633109596850,0.07047673,47539.0,47538.0,1.51865169]
[1633109597045,0.07047673,47539.0,47538.0,0.61865169]
[1633109597247,0.00045673,47539.0,47538.0,0.50421112]
[1633109597449,0.0006,47544.0,47538.0,0.50421112]
[1633109597722,0.0006,47544.0,47543.0,0.00124392]
[1633109597850,0.0006,47544.0,47543.0,0.01984392]
[1633109598050,0.0006,47544.0,47543.0,0.19831492]
[1633109598251,0.0006,47544.0,47543.0,0.27129854]
[1633109598450,0.0006,47544.0,47543.0,0.19831492]
[1633109598649,0.0006,47544.0,47543.0,0.24443937]
[1633109599249,0.001,47551.0,47543.0,0.24443937]
[1633109599456,0.001,47551.0,47545.0,0.26985465]
[1633109599652,0.001,47551.0,47546.0,0.315364]
[1633109599850,0.001,47551.0,47548.0,0.00123862]
[1633109600052,0.001,47551.0,47548.0,0.41954145]
[1633109600250,0.0114721,47549.0,47548.0,0.50515559]
[1633109600720,0.0254721,47549.0,47548.0,0.55486934]
[1633109601049,0.0254721,47549.0,47548.0,0.77806934]
[1633109601250,0.0254721,47549.0,47548.0,0.4692552]
[1633109601651,0.0254721,47549.0,47548.0,0.4697853]
[1633109602060,0.0114721,47549.0,47548.0,0.4367853]
[1633109602450,0.0114721,47549.0,47548.0,0.4362552]
[1633109602648,0.0294721,47549.0,47548.0,0.4682552]
[1633109604053,0.0114721,47549.0,47548.0,0.4362552]
[1633109604254,0.0114721,47549.0,47548.0,0.42866214]
[1633109604656,0.0294721,47549.0,47548.0,0.46166214]
[1633109605853,0.0114721,47549.0,47548.0,0.42866214]
[1633109606255,0.0114721,47549.0,47548.0,0.4362552]
[1633109606730,0.0284721,47549.0,47548.0,0.4682552]
[1633109607855,0.0284721,47549.0,47548.0,0.4362552]
[1633109607856,0.0114721,47549.0,47548.0,0.4362552]
[1633109608256,0.0114721,47549.0,47548.0,0.43877679]
[1633109608658,0.0334721,47549.0,47548.0,0.46777679]
[1633109609257,0.0334721,47549.0,47548.0,0.654394]
[1633109609861,0.0334721,47549.0,47548.0,0.64680094]
[1633109610261,0.0334721,47549.0,47548.0,0.61780094]
[1633109610464,0.0114721,47549.0,47548.0,0.61780094]
[1633109610861,0.0264721,47549.0,47548.0,0.64880094]
[1633109611663,0.0264721,47549.0,47548.0,0.656394]
[1633109612062,0.0264721,47549.0,47548.0,0.6755241]
[1633109612261,0.0114721,47549.0,47548.0,0.6445241]
[1633109612863,0.0144721,47549.0,47548.0,0.6795241]
[1633109614263,0.0114721,47549.0,47548.0,0.643994]
[1633109614464,0.01153281,47549.0,47548.0,0.643994]
[1633109614665,0.01153281,47549.0,47548.0,0.40413917]
[1633109614865,0.01953281,47549.0,47548.0,0.43813917]
[1633109615264,0.01953281,47549.0,47548.0,0.43054611]
[1633109616666,0.02853281,47549.0,47548.0,0.69327487]
[1633109616868,0.02053281,47549.0,47548.0,0.65927487]
[1633109617067,0.01153281,47549.0,47548.0,0.62527487]
[1633109617266,0.01153281,47549.0,47548.0,0.63286793]
[1633109618870,0.02153281,47549.0,47548.0,0.66586793]
[1633109619070,0.02153281,47549.0,47548.0,0.43590055]
[1633109619871,0.02153281,47549.0,47548.0,0.46729979]
[1633109620275,0.01153281,47549.0,47548.0,0.43482989]
[1633109620470,0.01113281,47549.0,47548.0,1.25932168]
[1633109620671,0.01113281,47549.0,47548.0,1.28370766]
[1633109620872,0.02113281,47549.0,47548.0,1.3111146]
[1633109621474,0.02113281,47549.0,47548.0,0.7111146]
[1633109621874,0.02113281,47549.0,47548.0,1.26989815]
[1633109622073,0.01113281,47549.0,47548.0,1.23307626]
[1633109622474,0.01113281,47549.0,47548.0,1.23437667]
[1633109622674,0.01113281,47549.0,47548.0,1.24196973]
[1633109622874,0.01113281,47549.0,47548.0,1.24728334]
[1633109623069,0.01113281,47549.0,47548.0,1.27167031]
[1633109623472,0.01113281,47549.0,47548.0,1.24728334]
[1633109623671,0.01113281,47549.0,47548.0,1.27167064]
[1633109624075,0.01113281,47549.0,47548.0,1.24067064]
[1633109624871,0.01113281,47549.0,47548.0,1.27067064]
[1633109625070,0.00089381,47549.0,47548.0,1.27067064]
[1633109625870,0.00089381,47549.0,47548.0,0.77067064]
[1633109626070,0.00089381,47549.0,47548.0,0.74067064]
[1633109626271,0.00089381,47549.0,47548.0,0.73307758]
[1633109626671,0.20646768,47549.0,47548.0,0.73307758]
[1633109626873,0.20646768,47549.0,47548.0,0.76307758]
[1633109628076,0.00089381,47549.0,47548.0,0.76307758]
[1633109628274,0.00089381,47549.0,47548.0,0.74067064]
[1633109628873,0.00089381,47549.0,47548.0,1.27267064]
[1633109630275,0.00089381,47549.0,47548.0,1.24067064]
[1633109630876,0.00089381,47549.0,47548.0,1.27067064]
[1633109631882,0.00089381,47549.0,47548.0,1.26307758]
[1633109632182,0.00089381,47549.0,47548.0,1.23307758]
[1633109632780,0.00089381,47549.0,47548.0,1.26360768]
[1633109632979,0.00089381,47549.0,47548.0,1.23922038]
[1633109633781,0.00089381,47549.0,47548.0,1.24628334]
[1633109634182,0.00089381,47549.0,47548.0,1.21628334]
[1633109634783,0.00089381,47549.0,47548.0,1.24828334]
[1633109634983,0.00089381,47549.0,47548.0,1.24881344]
[1633109636187,0.00089381,47549.0,47548.0,1.21681344]
[1633109636388,0.00089381,47549.0,47548.0,0.71681344]
[1633109636786,0.00089381,47549.0,47548.0,0.77419954]
[1633109636986,0.00089381,47549.0,47548.0,0.99739954]
[1633109637185,0.00089381,47549.0,47548.0,0.77419954]
[1633109637386,0.00089381,47549.0,47548.0,0.76607638]
[1633109638186,0.00089381,47549.0,47548.0,0.73307638]
[1633109638586,0.00089381,47549.0,47548.0,0.73360648]
[1633109638788,0.00089381,47549.0,47548.0,0.76760648]
[1633109639185,0.00089381,47549.0,47548.0,0.77519954]
[1633109640189,0.00089381,47549.0,47548.0,0.74119954]
[1633109640390,0.00089381,47549.0,47548.0,0.74329954]
[1633109640788,0.00089381,47549.0,47548.0,0.78029954]
[1633109640991,0.00089381,47549.0,47548.0,1.00349954]
[1633109642192,0.00089381,47549.0,47548.0,0.96149954]
[1633109642392,0.00089381,47549.0,47548.0,1.18829837]
[1633109642860,0.00089381,47549.0,47548.0,1.21870531]
[1633109643259,0.00089381,47549.0,47548.0,0.99190648]
[1633109643676,0.0012,47554.0,47548.0,0.99190648]
[1633109643677,0.0008,47559.0,47548.0,1.49190648]
[1633109643861,0.60354862,47563.0,47551.0,0.315316]
[1633109644064,0.60354862,47563.0,47556.0,0.210211]
[1633109644263,0.0014,47564.0,47557.0,0.24456994]
[1633109644461,0.0014,47564.0,47557.0,0.22018602]
[1633109644661,0.0014,47564.0,47558.0,0.01670285]
[1633109644865,0.07798885,47563.0,47558.0,0.01670285]
[1633109645062,0.00012016,47559.0,47558.0,0.01670285]
[1633109645460,0.00012016,47559.0,47558.0,0.24402868]
[1633109645862,0.00012016,47559.0,47558.0,0.01670285]
[1633109646861,0.00012016,47559.0,47558.0,0.22410485]
[1633109647061,0.00012016,47559.0,47558.0,0.20910485]
[1633109648263,0.00012016,47559.0,47558.0,0.39809133]
[1633109648463,0.00012016,47559.0,47558.0,0.39638848]
[1633109648865,0.00012016,47559.0,47558.0,0.42438848]
[1633109649872,0.00012016,47559.0,47558.0,0.206402]
[1633109650064,0.00012016,47559.0,47558.0,0.028]
[1633109650065,0.0013564,47559.0,47558.0,0.028]
[1633109650266,0.0013564,47559.0,47558.0,0.00920467]
[1633109650465,0.29468231,47559.0,47558.0,0.00920467]
[1633109650668,0.51181531,47559.0,47558.0,0.00920467]
[1633109650864,0.54381531,47559.0,47558.0,0.02820467]
[1633109651264,0.85921431,47559.0,47558.0,0.02820467]
[1633109652664,0.82721431,47559.0,47558.0,0.00920467]
[1633109652864,0.85781704,47559.0,47558.0,0.02920467]
[1633109653464,0.85808115,47559.0,47558.0,0.02920467]
[1633109653867,0.85808115,47559.0,47558.0,0.02]
[1633109654266,0.82708115,47559.0,47548.0,0.00462159]
[1633109654466,0.22156437,47551.0,47548.0,0.00462159]
[1633109654667,0.22156437,47551.0,47549.0,0.17844]
[1633109654865,0.22156437,47551.0,47550.0,8.413e-05]
[1633109655665,0.22156437,47551.0,47550.0,0.00929607]
[1633109656268,0.22278905,47551.0,47550.0,0.00929607]
[1633109656868,0.46492205,47551.0,47550.0,0.03629607]
[1633109658069,0.43992205,47551.0,47550.0,0.00929607]
[1633109658669,0.22278905,47551.0,47550.0,0.00929607]
[1633109658869,0.25578905,47551.0,47550.0,0.02029607]
[1633109659471,0.25578905,47551.0,47550.0,0.01108413]
[1633109660269,0.22278905,47551.0,47550.0,8.413e-05]
[1633109660868,0.47692205,47551.0,47550.0,8.413e-05]
[1633109661271,0.47692205,47551.0,47550.0,0.00929607]
[1633109661475,0.67692205,47551.0,47550.0,0.00929607]
[1633109661672,0.45535768,47551.0,47550.0,0.00929607]
[1633109662271,0.41835768,47551.0,47550.0,0.00929607]
[1633109662670,0.62030402,47551.0,47550.0,0.00929607]
[1633109662871,0.65330402,47551.0,47550.0,0.00929607]
[1633109663480,0.03422468,47551.0,47550.0,0.00929607]
[1633109663674,0.03422468,47551.0,47548.0,0.00391766]
[1633109663873,0.03422468,47551.0,47548.0,0.00299507]
[1633109664275,0.033,47551.0,47549.0,0.10660475]
[1633109664483,0.033,47551.0,47550.0,2.30529916]
[1633109664677,0.0014,47564.0,47550.0,0.69075032]
[1633109664974,0.0014,47564.0,47551.0,0.04727999]
[1633109665175,0.0014,47564.0,47552.0,0.0191301]
[1633109665374,0.0014,47564.0,47560.0,0.1]
[1633109665576,0.0014,47564.0,47562.0,0.315324]
[1633109665775,6.303e-05,47563.0,47561.0,0.21801563]
[1633109665973,6.303e-05,47563.0,47560.0,0.31021]
[1633109666175,0.00010814,47561.0,47560.0,0.31021]
[1633109666375,0.00010814,47561.0,47560.0,0.21021]
[1633109666573,0.00010814,47561.0,47560.0,0.42302516]
[1633109666774,0.00010814,47561.0,47560.0,0.74297004]
[1633109666976,0.00010814,47561.0,47560.0,0.71354888]
[1633109666977,0.02410814,47561.0,47560.0,0.71354888]
[1633109667374,0.02410814,47561.0,47560.0,0.81354888]
[1633109667975,0.02410814,47561.0,47560.0,1.04109047]
[1633109668376,0.00010814,47561.0,47560.0,1.02609047]
[1633109668577,0.00010814,47561.0,47560.0,1.04469047]
[1633109668778,0.00010814,47561.0,47560.0,1.04522057]
[1633109668975,0.01710814,47561.0,47560.0,1.42559081]
[1633109669176,0.01710814,47561.0,47560.0,1.42506071]
[1633109669579,0.01710814,47561.0,47560.0,1.06869047]
[1633109670379,0.01710814,47561.0,47560.0,1.04009359]
[1633109670578,0.0036692,47561.0,47560.0,1.33510626]
[1633109670977,0.0126692,47561.0,47560.0,1.36410626]
[1633109671979,0.0126692,47561.0,47560.0,1.36463636]
[1633109672183,0.00910814,47561.0,47560.0,1.36923324]
[1633109672682,0.00910814,47561.0,47560.0,1.86923324]
[1633109672880,0.02110814,47561.0,47560.0,1.87023324]
[1633109673281,0.02110814,47561.0,47560.0,1.57469047]
[1633109673682,0.00010814,47561.0,47560.0,1.54469047]
[1633109674483,0.00010814,47561.0,47560.0,1.31714888]
[1633109674886,0.01310814,47561.0,47560.0,1.39017427]
[1633109675684,0.01310814,47561.0,47560.0,1.82408473]
[1633109675888,0.01310814,47561.0,47560.0,1.81948785]
[1633109676082,0.0166692,47561.0,47560.0,1.81948785]
[1633109676289,0.01673445,47561.0,47560.0,2.04268785]
[1633109676591,0.0014,47564.0,47560.0,2.13395247]
[1633109676784,0.0014,47564.0,47563.0,0.17960868]
[1633109676982,0.0004,47566.0,47564.0,0.178374]
[1633109677182,0.0004,47566.0,47565.0,0.6504835]
[1633109677385,0.0004,47566.0,47565.0,0.6510136]
[1633109677585,0.00046006,47566.0,47565.0,0.71368409]
[1633109677785,0.00046006,47566.0,47565.0,0.72005696]
[1633109677981,0.00046006,47566.0,47565.0,0.94214035]
[1633109678382,0.00046006,47566.0,47565.0,1.26534035]
[1633109678584,0.00046006,47566.0,47565.0,1.26481025]
[1633109678983,0.00846006,47566.0,47565.0,1.30181025]
[1633109680182,0.00046006,47566.0,47565.0,1.26481025]
[1633109680383,0.00046006,47566.0,47565.0,1.04325696]
[1633109680584,0.00046006,47566.0,47565.0,0.82005696]
[1633109680985,0.01546006,47566.0,47565.0,0.85205696]
[1633109681182,0.01546006,47566.0,47565.0,1.08047414]
[1633109681382,0.01546006,47566.0,47565.0,1.07410127]
[1633109681583,0.01546006,47566.0,47565.0,1.07368115]
[1633109681785,0.01546006,47566.0,47565.0,0.84568409]
[1633109682185,0.01546006,47566.0,47565.0,1.06584346]
[1633109682491,0.00046006,47566.0,47565.0,0.81368409]
[1633109683088,0.02346006,47566.0,47565.0,0.84368409]
[1633109683285,0.02346006,47566.0,47565.0,0.85005696]
[1633109684084,0.01846006,47566.0,47565.0,0.85005696]
[1633109684286,0.00242458,47574.0,47565.0,0.82005696]
[1633109685093,0.0294,47567.0,47565.0,0.64882645]
[1633109685288,0.0294,47567.0,47566.0,0.1]
[1633109685489,0.0294,47567.0,47566.0,0.296964]
[1633109686289,0.0014,47567.0,47566.0,0.296964]
[1633109686691,0.0014,47567.0,47566.0,0.278364]
[1633109686692,0.00269423,47567.0,47566.0,0.278364]
[1633109686889,0.00397169,47567.0,47566.0,0.1]
[1633109687090,0.03197169,47567.0,47566.0,0.126]
[1633109687288,0.02819311,47567.0,47566.0,0.126]
[1633109687489,0.24532611,47567.0,47566.0,0.026]
[1633109688291,0.21835442,47567.0,47560.0,0.5]
[1633109688489,0.00122142,47567.0,47560.0,0.5]
[1633109688692,0.00122142,47567.0,47559.0,0.19499268]
[1633109689091,0.03022142,47567.0,47560.0,0.026]
[1633109689291,0.03022142,47567.0,47562.0,0.1]
[1633109689493,0.03022142,47567.0,47563.0,0.10958514]
[1633109690294,0.00122142,47567.0,47563.0,0.10958514]
[1633109690892,0.0014,47568.0,47563.0,0.10958514]
[1633109691095,0.028,47567.0,47563.0,0.13458514]
[1633109691294,0.028,47567.0,47564.0,0.178374]
[1633109691695,0.028,47567.0,47565.0,0.315298]
[1633109691894,0.028,47567.0,47566.0,0.47683915]
[1633109692096,0.028,47567.0,47566.0,0.47804754]
[1633109692495,0.0014,47568.0,47566.0,0.55318421]
[1633109693098,0.0014,47568.0,47566.0,0.58518421]
[1633109693099,0.0154,47568.0,47566.0,0.58518421]
[1633109693497,0.0154,47568.0,47566.0,0.58397582]
[1633109693896,0.0154,47568.0,47566.0,0.28550067]
[1633109694296,0.0014,47568.0,47567.0,0.10637151]
[1633109694503,0.0014,47568.0,47567.0,0.28473051]
[1633109695098,0.0124,47568.0,47567.0,0.31273051]
[1633109695503,0.0124,47568.0,47567.0,0.21273051]
[1633109696501,0.0014,47568.0,47567.0,0.18473051]
[1633109697099,0.0014,47568.0,47567.0,0.21773051]
[1633109697699,0.0014,47568.0,47567.0,0.211359]
[1633109698298,0.0014,47568.0,47567.0,0.178359]
[1633109699098,0.0014,47568.0,47567.0,0.209359]
[1633109699099,0.0194,47568.0,47567.0,0.209359]
[1633109699901,0.0194,47568.0,47567.0,0.21573005]
[1633109700503,0.0014,47568.0,47567.0,0.18473005]
[1633109701102,0.0194,47568.0,47567.0,0.21573005]
[1633109701302,0.0638,47568.0,47567.0,0.21573005]
[1633109702503,0.0458,47568.0,47567.0,0.18473005]
[1633109703104,0.0648,47568.0,47567.0,0.21673005]
[1633109703313,0.0648,47568.0,47563.0,0.1]
[1633109703314,2.45637105,47567.0,47563.0,0.1]
[1633109703507,0.70126021,47564.0,47563.0,0.1]
[1633109703706,0.91834521,47564.0,47563.0,0.1]
[1633109704108,0.83473672,47564.0,47563.0,0.1]
[1633109704306,0.21961025,47564.0,47554.0,0.08843613]
[1633109704507,0.17807754,47563.0,47554.0,0.08843613]
[1633109704703,0.00252525,47564.0,47554.0,0.08843613]
[1633109704906,0.0444,47562.0,47558.0,0.315348]
[1633109705305,0.0444,47562.0,47559.0,0.00637696]
[1633109706708,0.217085,47561.0,47559.0,0.00637696]
[1633109706907,0.00126039,47560.0,47559.0,0.00637696]
[1633109707107,0.00126039,47560.0,47559.0,0.02937696]
[1633109707306,0.00126039,47560.0,47559.0,0.02943703]
[1633109707711,0.21834539,47560.0,47559.0,0.02943703]
[1633109707909,0.00126039,47560.0,47559.0,0.02943703]
[1633109708513,0.00126039,47560.0,47559.0,0.00643703]
[1633109708781,0.00097827,47560.0,47559.0,0.00643703]
[1633109708910,0.0444,47562.0,47559.0,0.00643703]
[1633109709110,0.477,47560.0,47559.0,0.02706007]
[1633109709309,0.027,47560.0,47559.0,0.02706007]
[1633109709709,0.02829114,47560.0,47559.0,0.02706007]
[1633109710511,0.00129114,47560.0,47559.0,6.007e-05]
[1633109710711,0.00129114,47560.0,47559.0,0.00643884]
[1633109711115,0.02929114,47560.0,47559.0,0.03243884]
[1633109712110,0.028,47560.0,47559.0,0.03243884]
[1633109712512,0.0444,47562.0,47559.0,0.00643884]
[1633109712711,0.16128765,47563.0,47559.0,0.00643884]
[1633109713110,0.03,47562.0,47559.0,0.03043884]
[1633109713719,0.14499687,47555.0,47552.0,0.13782634]
[1633109713916,0.00128601,47553.0,47550.0,0.1]
[1633109714110,0.217085,47552.0,47550.0,0.1]
[1633109714315,0.56096808,47552.0,47548.0,0.00299507]
[1633109714510,0.77993454,47552.0,47551.0,0.00219514]
[1633109714714,0.86674444,47552.0,47551.0,0.00219514]
[1633109715112,0.89674444,47552.0,47551.0,0.02219514]
[1633109715515,0.78152946,47552.0,47551.0,0.02219514]
[1633109716111,0.77713243,47552.0,47551.0,0.02219514]
[1633109716315,0.77713243,47552.0,47551.0,0.02651615]
[1633109716512,1.1141806,47552.0,47551.0,0.00651615]
[1633109716712,1.0841806,47552.0,47551.0,0.00651615]
[1633109717113,1.1131806,47552.0,47551.0,0.02651615]
[1633109717313,2.68901441,47552.0,47551.0,0.01651615]
[1633109717512,1.18901441,47552.0,47551.0,0.01651615]
[1633109718516,1.16001441,47552.0,47548.0,0.00299507]
[1633109719114,1.19001441,47552.0,47548.0,0.00799507]
[1633109719316,0.24456943,47552.0,47550.0,0.00065253]
[1633109719915,0.03,47552.0,47550.0,0.00065253]
[1633109720115,0.0065568,47551.0,47550.0,0.00065253]
[1633109720787,0.0065568,47551.0,47550.0,0.00188196]
[1633109720920,0.0065568,47551.0,47550.0,0.00065253]
[1633109720921,0.24887587,47551.0,47550.0,0.00065253]
[1633109721117,0.27387587,47551.0,47550.0,0.02265253]
[1633109721517,0.0315568,47551.0,47550.0,0.02265253]
[1633109721718,0.025,47551.0,47550.0,0.02265253]
[1633109722517,0.14499687,47555.0,47550.0,0.00065253]
[1633109722716,0.217085,47554.0,47550.0,0.00065253]
[1633109723118,0.21806134,47551.0,47550.0,0.00065253]
[1633109723315,0.43514634,47551.0,47550.0,0.00065253]
[1633109725115,0.46614634,47551.0,47550.0,0.01165253]
[1633109725717,0.47270277,47551.0,47550.0,0.01165253]
[1633109726521,0.44170277,47551.0,47550.0,0.00065253]
[1633109726919,0.217085,47550.0,47548.0,0.00249422]
[1633109727320,0.417085,47550.0,47548.0,0.00249422]
[1633109727520,0.217085,47550.0,47548.0,0.00249422]
[1633109727921,0.18690486,47550.0,47548.0,0.00249422]
[1633109728120,0.24706134,47551.0,47548.0,0.00249422]
[1633109728320,0.24706134,47551.0,47542.0,0.210295]
[1633109728521,0.30429608,47548.0,47542.0,0.210295]
[1633109729119,0.33829608,47548.0,47542.0,0.200295]
[1633109729520,0.034,47548.0,47542.0,0.200295]
[1633109730524,0.22996942,47550.0,47542.0,0.515726]
[1633109731123,0.00655308,47549.0,47542.0,0.515726]
[1633109731321,0.00655308,47549.0,47542.0,0.200295]
[1633109732802,0.21806134,47551.0,47542.0,0.200295]
[1633109733123,0.035,47549.0,47542.0,0.200295]
[1633109734326,0.00125261,47548.0,47537.0,0.14868631]
[1633109734530,0.31265755,47548.0,47537.0,0.1]
[1633109734726,0.2,47547.0,47537.0,0.1]
[1633109735125,0.19559053,47538.0,47537.0,0.1]
[1633109735324,0.19559053,47538.0,47536.0,0.001051]
[1633109735325,0.50492993,47538.0,47536.0,0.001051]
[1633109735526,0.50492993,47538.0,47537.0,0.00016829]
[1633109735527,1.05409645,47538.0,47537.0,0.00016829]
[1633109735792,1.03756193,47538.0,47537.0,0.00016829]
[1633109736330,1.04410865,47538.0,47537.0,0.00016829]
[1633109737130,0.85502065,47538.0,47537.0,0.00016829]
[1633109737526,0.54568125,47538.0,47537.0,0.00016829]
[1633109738126,0.53913453,47538.0,47537.0,0.00016829]
[1633109738328,0.75622253,47538.0,47537.0,0.00016829]
[1633109738528,0.99780947,47538.0,47537.0,0.00016829]
[1633109738733,1.19780947,47538.0,47537.0,0.00016829]
[1633109739129,1.22680947,47538.0,47537.0,0.00016829]
[1633109740533,1.19780947,47538.0,47537.0,0.00016829]
[1633109741133,1.22780947,47538.0,47537.0,0.00016829]
[1633109741533,1.45078947,47538.0,47537.0,0.00016829]
[1633109741797,1.45733621,47538.0,47537.0,0.00016829]
[1633109742139,0.420735,47540.0,47538.0,3.54266379]
[1633109742339,0.22863722,47539.0,47538.0,3.54266379]
[1633109742537,0.420735,47540.0,47539.0,0.00014424]
[1633109742733,0.228963,47542.0,47538.0,3.54282006]
[1633109742935,0.228963,47542.0,47539.0,0.00014424]
[1633109743134,0.228963,47542.0,47541.0,0.0001202]
[1633109743537,0.51044177,47542.0,47541.0,0.0001202]
[1633109743735,0.42641325,47542.0,47541.0,0.00444212]
[1633109743937,0.210363,47542.0,47541.0,0.00444212]
[1633109744941,2.35752092,47542.0,47541.0,0.00444212]
[1633109745136,1.22461292,47542.0,47541.0,0.00444212]
[1633109745337,0.70461292,47542.0,47541.0,0.00444212]
[1633109745536,0.48752092,47542.0,47541.0,0.00444212]
[1633109746537,0.45752092,47542.0,47541.0,0.00444212]
[1633109747136,0.45752092,47542.0,47541.0,0.0001202]
[1633109747338,0.48908339,47542.0,47541.0,0.0001202]
[1633109748540,0.46108339,47542.0,47541.0,0.0001202]
[1633109748939,0.46108339,47542.0,47538.0,3.54134204]
[1633109749140,0.45752092,47542.0,47538.0,3.54134204]
[1633109749343,0.48652092,47542.0,47541.0,0.00432192]
[1633109749544,0.83248385,47542.0,47541.0,0.00432192]
[1633109750346,0.82748385,47542.0,47541.0,0.00432192]
[1633109750545,0.79848385,47542.0,47541.0,0.00432192]
[1633109751349,0.82648385,47542.0,47541.0,0.00432192]
[1633109751746,0.48052092,47542.0,47541.0,0.00432192]
[1633109751950,0.27515792,47542.0,47541.0,0.00432192]
[1633109752751,0.25072038,47542.0,47538.0,3.54134204]
[1633109753147,0.25072038,47542.0,47541.0,1.87068181]
[1633109753347,0.28172038,47542.0,47541.0,1.87068181]
[1633109753948,0.28172038,47542.0,47538.0,3.54134204]
[1633109754749,0.24715792,47542.0,47539.0,0.00432206]
[1633109755352,0.27715792,47542.0,47539.0,0.00432206]
[1633109755553,0.59268692,47542.0,47539.0,0.00432206]
[1633109756550,0.5924429,47542.0,47539.0,0.00432206]
[1633109757150,0.5624429,47542.0,47539.0,0.00432206]
[1633109757353,0.5914429,47542.0,47539.0,0.00432206]
[1633109758153,0.5914429,47542.0,47538.0,3.54134204]
[1633109758356,0.00356254,47541.0,47538.0,3.54134204]
[1633109758552,0.31909154,47541.0,47538.0,3.54134204]
[1633109759353,0.34909154,47541.0,47538.0,3.54134204]
[1633109759956,0.34909154,47541.0,47538.0,3.53634204]
[1633109760161,0.345529,47541.0,47538.0,3.53634204]
[1633109760358,0.345529,47541.0,47539.0,0.0043221]
[1633109760562,0.315529,47541.0,47539.0,0.0043221]
[1633109761357,0.345529,47541.0,47539.0,0.0043221]
[1633109762559,0.315529,47541.0,47539.0,0.0043221]
[1633109762826,0.315529,47541.0,47540.0,0.02446759]
[1633109763360,0.345529,47541.0,47540.0,0.02446759]
[1633109763963,0.345529,47541.0,47539.0,0.02447561]
[1633109764562,0.315529,47541.0,47539.0,0.02447561]
[1633109764765,0.310529,47541.0,47539.0,0.02447561]
[1633109765366,0.339529,47541.0,47538.0,3.53634204]
[1633109765830,0.339529,47541.0,47540.0,0.00864158]
[1633109766566,0.310529,47541.0,47540.0,0.00864158]
[1633109767373,0.340529,47541.0,47540.0,0.00864158]
[1633109768838,0.310529,47541.0,47540.0,0.00864158]
[1633109769168,0.310529,47541.0,47538.0,3.53634204]
[1633109769370,0.340529,47541.0,47538.0,3.53634204]
[1633109769970,0.03,47541.0,47538.0,3.53634204]
[1633109770768,0.56885671,47543.0,47538.0,3.53634204]
[1633109770972,0.21014122,47543.0,47538.0,3.53634204]
[1633109771168,0.08238018,47542.0,47538.0,3.53634204]
[1633109771368,0.08238018,47542.0,47539.0,0.00864208]
[1633109771838,0.315526,47541.0,47539.0,0.00864208]
[1633109772569,0.31297553,47541.0,47539.0,0.00864208]
[1633109773370,0.34197553,47541.0,47539.0,0.00864208]
[1633109774772,0.31297553,47541.0,47538.0,3.53634204]
[1633109775370,0.34197553,47541.0,47538.0,3.53634204]
[1633109776570,0.31297553,47541.0,47538.0,3.53634204]
[1633109776778,3.34364719,47549.0,47541.0,0.06695221]
[1633109776779,3.1333,47549.0,47541.0,0.06695221]
[1633109776976,1.087,47549.0,47547.0,0.00124025]
[1633109777174,0.14499687,47555.0,47548.0,0.00129993]
[1633109777372,0.14499687,47555.0,47552.0,0.00125002]
[1633109777847,0.00012017,47553.0,47552.0,0.00125002]
[1633109777974,0.00012017,47553.0,47552.0,0.22445002]
[1633109778177,0.00012017,47553.0,47552.0,0.99496588]